bitfinex/quotes_SOLUSD_20260108
["timestamp","ask_amount","ask_price","bid_price","bid_amount"]
[1767851904251,0.67028768,136.57,136.55,2.19824367]
[1767851904458,7.992088,136.58,136.55,2.19824367]
[1767851904841,0.67028768,136.58,136.56,2.19824367]
[1767851905047,7.99158106,136.59,136.56,2.19824367]
[1767851907357,0.67028768,136.58,136.56,2.19824367]
[1767851907578,0.67028768,136.58,136.55,2.2299202]
[1767851908279,0.67028768,136.59,136.55,2.2299202]
[1767851908579,0.67028768,136.59,136.56,0.03167653]
[1767851908737,0.67028768,136.59,136.56,2.2299202]
[1767851909742,0.67028768,136.59,136.55,7.32329912]
[1767851909944,0.67028768,136.59,136.56,2.19824367]
[1767851910343,0.67028768,136.62,136.58,2.19824367]
[1767851910957,0.67028768,136.62,136.59,2.19824367]
[1767851911457,0.67028768,136.64,136.6,2.19824367]
[1767851911839,0.67028768,136.61,136.52,0.14216157]
[1767851912042,0.67028768,136.6,136.56,2.19824367]
[1767851912653,0.67028768,136.6,136.55,2.19824367]
[1767851912840,0.70043602,136.59,136.55,2.19824367]
[1767851913663,0.70043602,136.58,136.54,2.19824367]
[1767851914567,0.70043602,136.58,136.53,2.19824367]
[1767851915467,8.02268834,136.57,136.53,2.19824367]
[1767851915884,0.70043602,136.56,136.53,2.19824367]
[1767851917084,0.70043602,136.57,136.53,2.19824367]
[1767851917256,0.70043602,136.57,136.54,2.19824367]
[1767851922879,0.70043602,136.57,136.51,13.38]
[1767851923061,0.70043602,136.57,136.54,2.19824367]
[1767851924965,7.32138564,136.59,136.54,9.52207476]
[1767851925281,8.02182166,136.59,136.55,2.19824367]
[1767851927989,8.02182166,136.59,136.56,2.19824367]
[1767851928882,0.70043602,136.59,136.56,2.19824367]
[1767851930188,0.70043602,136.6,136.57,2.19824367]
[1767851931087,8.02054435,136.61,136.58,2.19824367]
[1767851932370,0.70043602,136.61,136.58,2.19824367]
[1767851933492,0.70043602,136.61,136.59,2.19824367]
[1767851933692,0.70043602,136.61,136.57,7.32224216]
[1767851933882,0.70043602,136.61,136.58,2.19824367]
[1767851937200,0.70043602,136.61,136.56,2.19824367]
[1767851937201,0.70043602,136.6,136.56,2.19824367]
[1767851938781,8.02128598,136.6,136.56,2.19824367]
[1767851940004,0.70043602,136.62,136.58,2.19824367]
[1767851940712,0.70043602,136.62,136.57,2.19824367]
[1767851942501,0.722436,136.6,136.56,2.19824367]
[1767851943705,8.04319834,136.6,136.56,2.19824367]
[1767851944000,0.72216878,136.59,136.56,2.19824367]
[1767851950106,0.72216878,136.59,136.57,2.19824367]
[1767851950304,0.72216878,136.59,136.56,9.52090147]
[1767851950501,0.72216878,136.6,136.57,2.19824367]
[1767851951608,0.72216878,136.61,136.57,2.19824367]
[1767851951813,0.72216878,136.62,136.59,2.19824367]
[1767851952011,0.72216878,136.62,136.58,2.19824367]
[1767851952786,0.72216878,136.61,136.56,9.52069678]
[1767851955315,0.72216878,136.6,136.57,2.19824367]
[1767851955515,0.72216878,136.6,136.56,9.52069678]
[1767851956114,0.72216878,136.6,136.57,2.19824367]
[1767851958534,0.72216878,136.6,136.57,3.43408524]
[1767851961130,0.64167371,136.6,136.57,3.43408524]
[1767851964620,0.64167371,136.6,136.56,10.83703342]
[1767851965646,0.64167371,136.6,136.57,3.43408524]
[1767851968948,0.72216878,136.63,136.59,3.51458031]
[1767851969533,0.72216878,136.62,136.59,3.51458031]
[1767851969935,0.72216878,136.62,136.6,3.43408524]
[1767851971744,0.72216878,136.62,136.57,31.74558013]
[1767851971928,0.72216878,136.62,136.59,3.43408524]
[1767851976633,0.69076153,136.61,136.58,3.43408524]
[1767851977341,0.69076153,136.6,136.58,3.43408524]
[1767851978159,5.54707837,136.6,136.58,3.43408524]
[1767851979755,0.69076153,136.6,136.58,3.43408524]
[1767851980150,5.5466615,136.61,136.58,3.43408524]
[1767851980659,5.5466615,136.61,136.59,3.43408524]
[1767851980955,4.85589997,136.6,136.59,3.43408524]
[1767851981143,0.69076153,136.62,136.59,3.43408524]
[1767851981960,0.69076153,136.62,136.59,10.75518676]
[1767851982254,0.69076153,136.62,136.58,7.40197388]
[1767851982452,0.69076153,136.62,136.59,3.43408524]
[1767851983933,0.69076153,136.62,136.59,10.83566844]
[1767851984258,0.69076153,136.62,136.6,3.43408524]
[1767851984758,8.00981705,136.63,136.6,3.43408524]
[1767851985052,0.69076153,136.63,136.6,3.43408524]
[1767851986037,0.69076153,136.64,136.6,3.51458031]
[1767851986749,0.69076153,136.64,136.61,3.43408524]
[1767851987532,0.69076153,136.63,136.6,0.08049507]
[1767851987753,0.69076153,136.63,136.6,3.51458031]
[1767851988145,0.69076153,136.63,136.6,10.83521021]
[1767851990446,0.69076153,136.63,136.6,3.51458031]
[1767851991638,0.69076153,136.63,136.6,3.43408524]
[1767851991839,0.69076153,136.62,136.59,3.51458031]
[1767851992058,0.69076153,136.62,136.59,3.43408524]
[1767851995345,0.69076153,136.62,136.59,3.51458031]
[1767851995545,8.00993231,136.63,136.59,3.51458031]
[1767851997468,4.84851739,136.62,136.59,3.51458031]
[1767851997955,0.69076153,136.61,136.59,3.43408524]
[1767852000160,0.69076153,136.61,136.59,10.7552276]
[1767852000365,0.69076153,136.65,136.63,3.43408524]
[1767852000758,0.69076153,136.65,136.62,3.51458031]
[1767852001148,0.69076153,136.65,136.63,3.43408524]
[1767852001549,0.69076153,136.67,136.64,3.43408524]
[1767852001757,0.1,136.69,136.66,3.43408524]
[1767852003464,0.1,136.69,136.67,3.43408524]
[1767852003674,0.1,136.69,136.66,8.01901169]
[1767852003675,0.1,136.69,136.68,3.43408524]
[1767852003860,0.7822662,136.69,136.68,3.43408524]
[1767852004277,0.1,136.7,136.67,0.70161992]
[1767852004480,0.1,136.73,136.69,4.13570516]
[1767852004657,0.1,136.73,136.68,7.31634026]
[1767852004658,0.1,136.73,136.71,3.43408524]
[1767852005870,0.1,136.73,136.69,0.70161992]
[1767852005871,25.69798206,136.73,136.7,3.43408524]
[1767852006066,25.69798206,136.73,136.68,3.43408524]
[1767852006267,0.6822662,136.7,136.68,3.43408524]
[1767852007179,7.31439671,136.72,136.69,3.43408524]
[1767852008378,25.69789365,136.73,136.67,0.70161992]
[1767852008579,25.69789365,136.73,136.69,3.43408524]
[1767852009086,0.6822662,136.72,136.69,3.43408524]
[1767852010658,0.6822662,136.72,136.7,3.43408524]
[1767852011282,0.1,136.73,136.71,3.43408524]
[1767852012081,0.1,136.73,136.72,3.43408524]
[1767852012288,0.1,136.74,136.72,4.13570516]
[1767852013075,0.1,136.74,136.73,3.43408524]
[1767852013367,0.1,136.74,136.73,3.37408524]
[1767852013978,0.77724479,136.74,136.7,0.70161992]
[1767852014185,0.18509654,136.73,136.68,0.70161992]
[1767852014373,0.18509654,136.73,136.69,3.43408524]
[1767852014687,0.18996881,136.71,136.67,3.43408524]
[1767852014981,0.66749976,136.7,136.66,0.70161992]
[1767852015188,0.66749976,136.7,136.66,4.13570516]
[1767852015572,0.96658934,136.71,136.67,4.13570516]
[1767852015779,25.59976594,136.72,136.68,4.13570516]
[1767852016084,25.77989129,136.72,136.69,3.43408524]
[1767852016476,7.49434419,136.72,136.68,4.13570516]
[1767852017490,0.67724479,136.71,136.66,0.70161992]
[1767852017796,0.67724479,136.71,136.68,3.43408524]
[1767852018696,0.67724479,136.71,136.67,0.70161992]
[1767852018870,7.99218665,136.71,136.68,2.19441871]
[1767852019197,7.99668904,136.72,136.69,2.19441871]
[1767852019875,0.18012535,136.71,136.68,2.19441871]
[1767852020490,0.18012535,136.71,136.67,2.89603863]
[1767852020995,7.495287,136.71,136.67,2.89603863]
[1767852021180,7.495287,136.71,136.68,0.70161992]
[1767852021492,7.31516165,136.71,136.68,0.70161992]
[1767852022071,7.31516165,136.71,136.68,2.89603863]
[1767852022478,7.31516165,136.71,136.68,0.70161992]
[1767852022682,7.31516165,136.71,136.68,2.89603863]
[1767852024093,7.31516165,136.71,136.68,0.70161992]
[1767852024271,7.495287,136.71,136.68,2.89603863]
[1767852025487,7.31516165,136.71,136.68,2.89603863]
[1767852026695,7.99602504,136.73,136.69,0.70161992]
[1767852026888,0.18012535,136.72,136.69,2.89603863]
[1767852028594,7.31475385,136.71,136.69,0.70161992]
[1767852028788,7.31475385,136.71,136.69,2.89603863]
[1767852028993,7.31475385,136.71,136.69,0.70161992]
[1767852029593,7.49457682,136.72,136.69,0.70161992]
[1767852030499,7.49457682,136.72,136.69,2.89603863]
[1767852030991,7.99618771,136.73,136.7,2.89603863]
[1767852032179,0.18012535,136.72,136.69,0.68303243]
[1767852032375,0.18012535,136.72,136.69,2.87745114]
[1767852034380,7.49479386,136.72,136.69,2.87745114]
[1767852034588,0.67724479,136.71,136.69,2.19441871]
[1767852035603,8.03014048,136.72,136.69,2.19441871]
[1767852036800,0.14725163,136.71,136.68,2.19441871]
[1767852037503,0.14725163,136.71,136.68,2.87745114]
[1767852040385,7.46218982,136.71,136.68,2.87745114]
[1767852040805,7.46218982,136.71,136.65,2.87745114]
[1767852040806,0.15287701,136.69,136.65,2.87745114]
[1767852041702,0.15287701,136.69,136.64,2.87745114]
[1767852041905,0.15287701,136.69,136.65,2.19441871]
[1767852042106,0.15287701,136.69,136.65,2.87745114]
[1767852042314,7.31635937,136.68,136.65,2.87745114]
[1767852043224,7.31635937,136.68,136.66,2.19441871]
[1767852043402,7.31635937,136.68,136.66,2.87745114]
[1767852043802,7.31635937,136.68,136.67,0.68303243]
[1767852044313,7.31582412,136.69,136.67,0.68303243]
[1767852044887,7.31582412,136.69,136.66,2.87745114]
[1767852045991,8.03080616,136.7,136.67,0.68303243]
[1767852046194,8.03080616,136.7,136.67,2.87745114]
[1767852047016,7.31533419,136.7,136.67,2.87745114]
[1767852047516,21.39042024,136.71,136.68,0.68303243]
[1767852048021,14.07547197,136.71,136.68,2.87745114]
[1767852048201,20.67486675,136.71,136.68,2.87745114]
[1767852049309,20.67486675,136.71,136.68,0.68303243]
[1767852049519,13.36,136.71,136.69,0.68303243]
[1767852049813,7.31439192,136.72,136.69,0.68303243]
[1767852050317,7.31439192,136.72,136.68,2.19441871]
[1767852050318,0.1,136.74,136.71,0.68303243]
[1767852051506,7.41334501,136.74,136.71,0.68303243]
[1767852053304,7.41334501,136.74,136.71,2.87745114]
[1767852053514,0.1,136.74,136.73,0.68303243]
[1767852053712,0.1,136.74,136.73,0.62303243]
[1767852053921,0.1,136.74,136.73,2.81745114]
[1767852055320,0.1,136.74,136.73,0.62303243]
[1767852055726,0.1,136.74,136.72,2.87745114]
[1767852055914,0.81547197,136.74,136.7,2.19441871]
[1767852056113,0.81547197,136.74,136.69,2.19441871]
[1767852057527,8.02915587,136.73,136.69,2.19441871]
[1767852057824,8.02915587,136.73,136.7,2.19441871]
[1767852058005,8.02915587,136.73,136.7,2.87745114]
[1767852059819,7.3136839,136.73,136.71,2.87745114]
[1767852060025,8.12881946,136.74,136.71,2.87745114]
[1767852060210,0.81547197,136.74,136.71,2.87745114]
[1767852060417,0.71547197,136.73,136.69,2.19441871]
[1767852060717,0.71547197,136.73,136.68,2.87745114]
[1767852061824,8.02969081,136.72,136.69,2.87745114]
[1767852063228,8.02969081,136.72,136.69,0.68303243]
[1767852063428,0.65639927,136.71,136.68,2.90326601]
[1767852063725,0.65639927,136.71,136.66,2.90326601]
[1767852063726,7.97211608,136.7,136.66,2.90326601]
[1767852064106,0.65639927,136.69,136.66,0.7088473]
[1767852064940,0.65639927,136.71,136.68,2.90326601]
[1767852065426,14.01639927,136.72,136.69,2.19441871]
[1767852065752,14.01639927,136.72,136.69,2.90326601]
[1767852066409,21.33075636,136.72,136.69,2.90326601]
[1767852066608,21.33075636,136.72,136.69,0.7088473]
[1767852067325,0.65639927,136.71,136.67,0.7088473]
[1767852067525,0.65639927,136.71,136.67,2.90326601]
[1767852067726,0.65639927,136.71,136.66,2.19441871]
[1767852067928,7.31528895,136.7,136.66,2.90326601]
[1767852068108,0.65639927,136.69,136.66,2.19441871]
[1767852070744,0.65639927,136.69,136.65,8.02661371]
[1767852071039,0.65639927,136.69,136.66,2.19441871]
[1767852073231,0.65639927,136.7,136.66,2.90326601]
[1767852073433,0.65639927,136.7,136.67,0.7088473]
[1767852075634,0.65639927,136.7,136.67,2.90326601]
[1767852076449,0.65639927,136.7,136.67,0.7088473]
[1767852076641,0.65639927,136.7,136.67,2.90326601]
[1767852076948,0.65639927,136.7,136.67,2.19441871]
[1767852078327,0.65639927,136.7,136.67,2.90326601]
[1767852079549,0.62639928,136.7,136.67,2.90326601]
[1767852080453,0.62639928,136.7,136.67,0.7088473]
[1767852080769,0.62639928,136.7,136.67,4.1380314]
[1767852082148,7.97124339,136.71,136.67,4.1380314]
[1767852082757,0.65639927,136.7,136.67,4.1380314]
[1767852083137,0.65639927,136.67,136.62,0.7088473]
[1767852083342,0.62639928,136.67,136.62,0.7088473]
[1767852083543,3.4291841,136.67,136.61,0.7088473]
[1767852083853,13.64432314,136.69,136.61,4.1380314]
[1767852084163,3.4291841,136.66,136.61,4.1380314]
[1767852084332,7.3179656,136.65,136.61,4.1380314]
[1767852084657,29.01206372,136.65,136.6,0.7088473]
[1767852085343,0.65639927,136.64,136.6,0.7088473]
[1767852086355,0.65639927,136.63,136.57,0.7088473]
[1767852086558,0.65639927,136.62,136.58,4.1380314]
[1767852086860,0.65639927,136.62,136.59,3.4291841]
[1767852087152,0.65639927,136.62,136.59,4.1380314]
[1767852087846,7.97600458,136.62,136.59,4.1380314]
[1767852089237,7.97600458,136.62,136.6,3.4291841]
[1767852089535,7.94600459,136.62,136.6,3.4291841]
[1767852090654,7.94600459,136.62,136.59,0.7088473]
[1767852090840,0.62639928,136.62,136.6,3.4291841]
[1767852091236,7.94599732,136.62,136.59,4.1380314]
[1767852093556,7.91599733,136.62,136.59,0.7088473]
[1767852093940,7.31959804,136.62,136.58,4.133411]
[1767852094141,7.31959804,136.62,136.58,0.7042269]
[1767852094353,3.4291841,136.6,136.55,0.7042269]
[1767852094551,3.4291841,136.59,136.54,4.133411]
[1767852095064,3.71350724,136.6,136.54,4.133411]
[1767852095263,7.32118017,136.59,136.55,4.133411]
[1767852095558,7.99412447,136.59,136.55,4.133411]
[1767852096054,0.6729443,136.58,136.55,0.7042269]
[1767852097270,7.99481635,136.58,136.55,4.133411]
[1767852097634,7.99481635,136.58,136.53,0.9042269]
[1767852097840,7.99481635,136.58,136.54,4.133411]
[1767852098163,7.99481635,136.58,136.53,4.333411]
[1767852098164,0.6729443,136.57,136.53,4.333411]
[1767852098467,0.6729443,136.57,136.54,0.7042269]
[1767852099244,0.6729443,136.57,136.54,4.133411]
[1767852099559,0.61294432,136.57,136.54,4.133411]
[1767852100267,7.93533531,136.57,136.54,4.133411]
[1767852101267,18.30429052,136.58,136.54,4.133411]
[1767852101455,18.97723482,136.58,136.54,4.133411]
[1767852101661,18.97723482,136.58,136.54,0.7042269]
[1767852101861,18.97723482,136.58,136.54,4.133411]
[1767852102453,26.29895103,136.58,136.54,0.7042269]
[1767852102770,26.29895103,136.58,136.54,4.133411]
[1767852103071,0.6729443,136.57,136.54,4.133411]
[1767852103292,0.6729443,136.57,136.53,0.9042269]
[1767852104669,7.32278851,136.56,136.53,4.333411]
[1767852106873,7.32278851,136.56,136.54,0.7042269]
[1767852107045,7.3224904,136.57,136.54,3.4291841]
[1767852107252,7.9954347,136.57,136.54,4.133411]
[1767852108181,0.6729443,136.56,136.54,3.4291841]
[1767852109370,0.6729443,136.59,136.56,0.7042269]
[1767852109556,7.32143163,136.59,136.56,4.133411]
[1767852109755,0.6729443,136.58,136.56,3.4291841]
[1767852110178,7.99469156,136.58,136.55,4.133411]
[1767852110983,7.99469156,136.58,136.55,0.7042269]
[1767852111170,0.6729443,136.57,136.54,0.7042269]
[1767852111775,0.6729443,136.57,136.53,3.6291841]
[1767852112370,7.99573281,136.56,136.53,3.6291841]
[1767852112576,7.99573281,136.56,136.53,4.333411]
[1767852113887,7.32239756,136.57,136.54,4.133411]
[1767852115170,0.6729443,136.57,136.53,0.2]
[1767852115559,0.6729443,136.56,136.53,0.2]
[1767852115760,0.6729443,136.55,136.53,0.2]
[1767852115962,0.61294432,136.55,136.53,0.2]
[1767852116669,3.4291841,136.55,136.5,0.7042269]
[1767852117086,7.32386113,136.54,136.5,0.7042269]
[1767852117394,7.32386113,136.54,136.51,0.7042269]
[1767852118065,7.96680544,136.54,136.51,0.7042269]
[1767852118392,0.48935621,136.53,136.5,3.4291841]
[1767852118878,7.81393527,136.53,136.5,4.133411]
[1767852119077,7.81393527,136.53,136.5,3.4291841]
[1767852119285,7.81393527,136.53,136.5,4.133411]
[1767852120380,7.32457906,136.53,136.51,0.7042269]
[1767852120797,7.99568748,136.53,136.49,4.133411]
[1767852121090,0.49117373,136.52,136.49,0.7042269]
[1767852122072,0.49117373,136.52,136.47,4.28662707]
[1767852122271,0.49295508,136.5,136.47,0.2]
[1767852122472,3.4291841,136.51,136.47,0.85744297]
[1767852122473,0.72193149,136.51,136.47,0.85744297]
[1767852122878,8.04783192,136.51,136.47,0.85744297]
[1767852123077,8.04783192,136.51,136.47,4.28662707]
[1767852123802,8.04783192,136.51,136.47,0.85744297]
[1767852123983,7.76691181,136.5,136.47,0.85744297]
[1767852124173,0.44085889,136.5,136.47,4.28662707]
[1767852124373,7.32563653,136.51,136.48,4.13266417]
[1767852124578,32.38185675,136.55,136.51,0.70348007]
[1767852124779,7.79358334,136.54,136.5,4.13266417]
[1767852125080,8.01695129,136.54,136.5,4.13266417]
[1767852125687,8.01695129,136.54,136.5,0.70348007]
[1767852126696,8.01695129,136.54,136.5,4.13266417]
[1767852127203,8.01695129,136.54,136.51,0.70348007]
[1767852128684,7.32401711,136.54,136.51,0.70348007]
[1767852129395,8.01471761,136.54,136.51,0.70348007]
[1767852130091,25.63192124,136.55,136.51,0.70348007]
[1767852131001,29.53067157,136.55,136.51,0.70348007]
[1767852131203,26.10148747,136.55,136.51,0.70348007]
[1767852131403,29.53067157,136.55,136.51,0.70348007]
[1767852131815,0.47177757,136.53,136.49,0.70348007]
[1767852132184,7.32493407,136.52,136.49,0.70348007]
[1767852132992,8.01344535,136.52,136.49,0.70348007]
[1767852133390,7.32493407,136.52,136.49,0.70348007]
[1767852133899,7.32462544,136.53,136.51,0.70348007]
[1767852134403,7.79342736,136.54,136.51,0.70348007]
[1767852139317,0.6907005,136.53,136.49,0.70348007]
[1767852139509,0.6907005,136.53,136.49,4.13266417]
[1767852139710,0.6907005,136.53,136.49,0.70348007]
[1767852139896,0.6907005,136.53,136.49,4.13266417]
[1767852140509,0.6907005,136.53,136.49,2.90409316]
[1767852141312,7.32493407,136.52,136.49,2.90409316]
[1767852142499,7.32493407,136.52,136.49,0.70348007]
[1767852143709,0.47177757,136.52,136.49,0.70348007]
[1767852145821,26.32832566,136.53,136.49,0.70348007]
[1767852146321,26.32832566,136.53,136.49,2.90409316]
[1767852146806,0.46956623,136.52,136.49,2.90409316]
[1767852147124,7.79490656,136.52,136.49,0.70348007]
[1767852149620,0.6907005,136.51,136.47,3.10409316]
[1767852149812,0.6907005,136.51,136.48,0.70348007]
[1767852150325,0.6907005,136.51,136.47,0.90348007]
[1767852150524,0.47177757,136.5,136.47,0.2]
[1767852152208,0.68851128,136.49,136.47,0.2]
[1767852154125,8.01518199,136.49,136.47,0.2]
[1767852155525,7.32667071,136.49,136.47,0.2]
[1767852157540,7.76735792,136.49,136.47,0.2]
[1767852159541,7.32667071,136.49,136.47,0.92157958]
[1767852159741,7.76735792,136.49,136.47,0.2]
[1767852160248,7.32667071,136.49,136.47,0.92157958]
[1767852160939,8.04812203,136.5,136.47,0.92157958]
[1767852161842,0.44068721,136.49,136.46,2.40061309]
[1767852162323,8.04812203,136.5,136.46,3.12219267]
[1767852165242,8.04812203,136.5,136.46,0.92157958]
[1767852171633,8.04820547,136.5,136.47,0.72157958]
[1767852172537,7.32591498,136.51,136.47,0.72157958]
[1767852172750,7.56860219,136.51,136.47,0.72157958]
[1767852172941,7.32591498,136.51,136.48,0.72157958]
[1767852173139,10.24781763,136.52,136.48,0.72157958]
[1767852174028,0.24268721,136.51,136.48,0.72157958]
[1767852176047,7.56833575,136.51,136.48,0.72157958]
[1767852176749,9.76894884,136.51,136.48,0.72157958]
[1767852177248,2.4433003,136.51,136.48,0.72157958]
[1767852177454,0.24268721,136.51,136.48,0.72157958]
[1767852178652,0.71731073,136.5,136.47,0.72157958]
[1767852178855,10.24834161,136.51,136.47,0.72157958]
[1767852179751,0.24268721,136.5,136.47,0.72157958]
[1767852180349,7.56883357,136.5,136.47,0.72157958]
[1767852182060,0.24268721,136.5,136.47,0.72157958]
[1767852182429,8.02528926,136.51,136.47,0.72157958]
[1767852184445,10.22590235,136.51,136.47,0.72157958]
[1767852187336,8.02528926,136.51,136.47,0.72157958]
[1767852191532,0.26498195,136.5,136.47,0.72157958]
[1767852192240,10.23646822,136.51,136.47,0.72157958]
[1767852193266,8.03585513,136.51,136.47,0.72157958]
[1767852195555,2.20061309,136.53,136.47,2.20061309]
[1767852195734,0.71015084,136.55,136.5,2.20061309]
[1767852195939,0.71015084,136.55,136.51,2.20061309]
[1767852196148,0.71015084,136.55,136.52,0.71488297]
[1767852196841,8.03367787,136.55,136.52,0.71488297]
[1767852201039,7.32352703,136.55,136.52,0.71488297]
[1767852201243,8.03367787,136.55,136.52,0.71488297]
[1767852201467,0.71015084,136.58,136.54,2.20061309]
[1767852202143,8.03209276,136.58,136.55,2.20061309]
[1767852202364,31.68090227,136.61,136.55,2.20061309]
[1767852202365,0.71015084,136.59,136.55,2.20061309]
[1767852202547,0.71015084,136.59,136.55,3.43516708]
[1767852203375,8.03139414,136.59,136.55,3.43516708]
[1767852203760,0.71015084,136.58,136.55,3.43516708]
[1767852204161,0.71015084,136.58,136.54,3.43516708]
[1767852205944,0.71015084,136.57,136.54,3.43516708]
[1767852206160,0.71015084,136.57,136.55,3.43516708]
[1767852208158,8.03246996,136.57,136.52,7.32470187]
[1767852208364,8.03246996,136.57,136.55,3.43516708]
[1767852210052,0.71015084,136.58,136.55,3.43516708]
[1767852210256,0.71015084,136.58,136.56,3.43516708]
[1767852210473,0.71015084,136.59,136.57,3.43516708]
[1767852210776,0.71015084,136.59,136.57,3.37516708]
[1767852210976,0.71015084,136.59,136.57,3.31516708]
[1767852211776,0.71015084,136.59,136.56,3.43516708]
[1767852212175,0.69772519,136.58,136.55,3.43516708]
[1767852212388,0.69772519,136.58,136.54,3.43516708]
[1767852212561,0.69772519,136.57,136.53,3.43516708]
[1767852212958,0.69772519,136.56,136.52,3.43516708]
[1767852213152,0.69772519,136.55,136.49,7.32645964]
[1767852213357,0.69772519,136.55,136.48,7.32676132]
[1767852213659,0.69772519,136.55,136.51,3.43516708]
[1767852214059,0.69772519,136.54,136.51,3.43516708]
[1767852214577,8.02139481,136.55,136.52,3.43516708]
[1767852214874,0.69772519,136.57,136.54,3.43516708]
[1767852215078,0.69772519,136.57,136.55,3.43516708]
[1767852215266,0.69772519,136.57,136.54,3.43516708]
[1767852216482,0.69772519,136.57,136.55,3.43516708]
[1767852216987,0.69772519,136.57,136.54,3.43516708]
[1767852217684,21.39968176,136.58,136.54,3.43516708]
[1767852218390,21.39968176,136.58,136.55,3.43516708]
[1767852218775,21.39968176,136.58,136.54,3.43516708]
[1767852219176,8.01968176,136.58,136.54,3.43516708]
[1767852220264,0.69772519,136.57,136.54,3.43516708]
[1767852221277,8.02010981,136.57,136.54,3.43516708]
[1767852225384,8.02010981,136.57,136.55,3.43516708]
[1767852225586,8.01960267,136.58,136.55,3.43516708]
[1767852225899,8.01903112,136.59,136.56,3.43516708]
[1767852226083,8.01903112,136.59,136.57,3.43516708]
[1767852226273,8.01903112,136.59,136.57,3.37516708]
[1767852228294,8.01903112,136.59,136.57,3.31516708]
[1767852228496,8.0183694,136.6,136.57,3.31516708]
[1767852229682,7.32064421,136.6,136.58,3.43516708]
[1767852236194,0.69772519,136.59,136.57,3.43516708]
[1767852236396,7.32064421,136.6,136.57,3.43516708]
[1767852236602,8.0183694,136.6,136.57,3.43516708]
[1767852237299,8.0183694,136.6,136.57,3.37516708]
[1767852238999,0.69772519,136.6,136.58,3.43516708]
[1767852239206,7.3203002,136.61,136.59,3.43516708]
[1767852239397,7.3203002,136.61,136.54,25.63351397]
[1767852239695,7.3203002,136.61,136.59,3.43516708]
[1767852239896,8.01744005,136.62,136.6,3.43516708]
[1767852240405,8.01691325,136.63,136.6,3.43516708]
[1767852240702,0.69772519,136.62,136.6,3.43516708]
[1767852242000,0.69772519,136.62,136.59,3.43516708]
[1767852242177,0.69772519,136.62,136.59,3.40285946]
[1767852242806,8.01737589,136.62,136.59,3.40285946]
[1767852243509,0.69137008,136.61,136.58,3.43516708]
[1767852243695,0.69137008,136.61,136.57,3.43516708]
[1767852244094,0.69137008,136.61,136.56,3.43516708]
[1767852244593,8.01201429,136.6,136.56,3.43516708]
[1767852246207,8.01201429,136.6,136.57,3.43516708]
[1767852248010,0.69137008,136.59,136.56,3.43516708]
[1767852248311,0.69137008,136.58,136.53,3.43516708]
[1767852248487,0.69137008,136.57,136.51,7.32511452]
[1767852248688,0.69137008,136.57,136.53,3.43516708]
[1767852249193,0.69137008,136.56,136.53,3.43516708]
[1767852249901,0.69137008,136.56,136.52,3.43516708]
[1767852250093,0.69137008,136.56,136.51,3.43516708]
[1767852250288,0.69137008,136.56,136.49,18.31546868]
[1767852250289,0.69137008,136.54,136.48,7.32695291]
[1767852250594,0.69137008,136.53,136.49,3.43516708]
[1767852251722,8.01594672,136.53,136.49,3.43516708]
[1767852252509,7.98594673,136.53,136.49,3.43516708]
[1767852253319,0.66137009,136.53,136.5,3.43516708]
[1767852256901,0.66137009,136.53,136.47,39.02588578]
[1767852257215,0.66137009,136.53,136.5,3.43516708]
[1767852259321,0.69137008,136.52,136.48,3.43516708]
[1767852260314,0.69137008,136.52,136.48,10.76222116]
[1767852261212,0.69137008,136.52,136.49,3.43516708]
[1767852261413,0.69137008,136.52,136.48,3.43516708]
[1767852261811,0.69137008,136.52,136.49,3.43516708]
[1767852264517,0.69137008,136.52,136.49,2.20062925]
[1767852264828,0.69137008,136.52,136.48,9.52766185]
[1767852265328,0.69137008,136.51,136.47,2.20062925]
[1767852265704,0.69137008,136.5,136.46,2.40062925]
[1767852265906,0.69137008,136.5,136.46,9.72877703]
[1767852266127,0.69137008,136.48,136.46,0.2]
[1767852269334,8.01846779,136.48,136.46,0.2]
[1767852270336,0.69137008,136.46,136.43,0.2]
[1767852270532,8.01967879,136.46,136.43,0.2]
[1767852270833,0.69137008,136.45,136.43,2.40062925]
[1767852271007,0.69137008,136.46,136.43,2.40062925]
[1767852271212,0.69137008,136.46,136.44,2.20062925]
[1767852272621,0.65265866,136.45,136.43,0.2]
[1767852272824,0.65265866,136.5,136.44,2.20062925]
[1767852273017,0.65265866,136.48,136.44,2.20062925]
[1767852273417,0.65265866,136.47,136.43,2.40062925]
[1767852274516,0.65265866,136.47,136.44,2.20062925]
[1767852275123,0.65265866,136.47,136.43,0.2]
[1767852275124,0.65265866,136.46,136.43,0.2]
[1767852275436,0.65265866,136.46,136.44,2.20062925]
[1767852276317,7.98085029,136.46,136.43,0.2]
[1767852276635,7.98085029,136.46,136.44,2.20062925]
[1767852276940,7.98085029,136.46,136.43,0.2]
[1767852277239,0.65265866,136.45,136.43,2.40062925]
[1767852278936,0.65265866,136.45,136.44,2.20062925]
[1767852279540,7.98027645,136.47,136.44,2.20062925]
[1767852279840,0.65265866,136.46,136.44,2.20062925]
[1767852280040,0.65265866,136.46,136.43,0.2]